fUST/lending_fUST_20260204
["ID","MTS","AMOUNT","RATE_DAILY","PERIOD"]
[404443720,1770145028590,500.0,0.00013273,2]
[404443723,1770145181090,-220.18202357,0.00013699,2]
[404443724,1770145181118,-2193.310908,0.00013699,2]
[404443725,1770145181145,-500.0,0.00013699,2]
[404443726,1770145181172,-501.7198169,0.00013699,2]
[404443727,1770145181200,-500.0,0.00013699,2]
[404443728,1770145181227,-500.0,0.00013699,2]
[404443729,1770145181254,-500.0,0.00013699,2]
[404443730,1770145181606,-500.0,0.00013699,2]
[404443731,1770145181634,-313.02539715,0.00013699,2]
[404443732,1770145181791,-500.0,0.00013699,2]
[404443733,1770145181821,-500.0,0.00013699,2]
[404443734,1770145181849,-500.0,0.00013699,2]
[404443735,1770145181878,-500.0,0.00013699,2]
[404443736,1770145181906,-596.4576452,0.00013699,2]
[404443737,1770145181934,-520.85415048,0.00013699,2]
[404443738,1770145181962,-530.32622191,0.00013699,2]
[404443739,1770145181988,-500.0,0.00013699,2]
[404443740,1770145184010,-501.01658452,0.00013699,2]
[404443741,1770145184037,-500.0,0.00013699,2]
[404443742,1770145184065,-500.0,0.00013699,2]
[404443743,1770145184092,-500.0,0.00013699,2]
[404443744,1770145184120,-500.0,0.00013699,2]
[404443745,1770145184146,-500.0,0.00013699,2]
[404443746,1770145184174,-500.0,0.00013699,2]
[404443747,1770145184200,-500.0,0.00013699,2]
[404443748,1770145184226,-500.0,0.00013699,2]
[404443749,1770145184255,-454.40463813,0.00013821,2]
[404443750,1770145187085,-89.1675547,0.00013821,2]
[404443751,1770145187115,-1000.0,0.00013821,2]
[404443752,1770145187144,-598.55870767,0.00013821,2]
[404443753,1770145187172,-500.0,0.00013821,2]
[404443754,1770145187201,-1000.0,0.00013821,2]
[404443755,1770145187238,-508.39514078,0.00013821,2]
[404443756,1770145187276,-300.0,0.00014096,2]
[404443757,1770145187310,-300.0,0.00014096,2]
[404443758,1770145187346,-300.0,0.00014096,2]
[404443759,1770145187381,-300.0,0.00014096,2]
[404443763,1770145208948,300.0,0.00013673,2]
[404443764,1770145262763,-507.77467851,0.00013699,2]
[404443765,1770145262791,-65.94112285,0.00013699,2]
[404443766,1770145262808,-434.05887715,0.00013699,2]
[404443767,1770145262821,-73.71580136,0.00013699,2]
[404443768,1770145262832,-426.28419864,0.00013699,2]
[404443769,1770145262842,-73.71580136,0.00014096,2]
[404443770,1770145280010,500.0,0.00013698,2]
[404443771,1770145294979,1406.86617416,0.00013699,2]
[404443773,1770145326718,500.0,0.00013273,2]
[404443774,1770145336778,-631.08756037,0.00013699,2]
[404443775,1770145336802,-500.0,0.00013699,2]
[404443776,1770145336826,-500.0,0.00013699,2]
[404443777,1770145336852,-500.0,0.00013699,2]
[404443778,1770145336878,-500.0,0.00013699,2]
[404443779,1770145336902,-500.0,0.00013699,2]
[404443780,1770145336926,-501.6271235,0.00013699,2]
[404443781,1770145336956,-500.0,0.00013699,2]
[404443782,1770145336980,-500.0,0.00013819,2]
[404443783,1770145337003,-440.24241596,0.00013821,2]
[404443784,1770145337029,-226.28419864,0.00014096,2]
[404443785,1770145337055,-300.0,0.00014096,2]
[404443786,1770145337082,-300.0,0.00014096,2]
[404443787,1770145337106,-300.0,0.00014096,2]
[404443788,1770145337133,-300.0,0.00014096,2]
[404443789,1770145337159,-300.0,0.00014096,2]
[404443790,1770145337184,-300.0,0.00014096,2]
[404443791,1770145337213,-300.0,0.00014096,2]
[404443792,1770145337241,-300.0,0.00014096,2]
[404443793,1770145337269,-300.0,0.00014096,2]
[404443794,1770145337298,-300.0,0.00014096,2]
[404443795,1770145337332,-621.0,0.00014096,2]
[404443796,1770145337363,-500.0,0.00014246,2]
[404443797,1770145337391,-500.0,0.00014247,2]
[404443798,1770145337416,-348.51110734,0.00014247,2]
[404443799,1770145337440,-500.0,0.00014247,2]
[404443800,1770145337465,-298.70124785,0.00014247,2]
[404443801,1770145337488,-500.0,0.00014247,2]
[404443802,1770145337511,-500.0,0.00014247,2]
[404443803,1770145337534,-500.0,0.00014247,2]
[404443804,1770145337556,-412.65985558,0.00014247,2]
[404443805,1770145337588,-600.0,0.00014377,2]
[404443806,1770145337612,-150.09721788,0.00015018,2]
[404443807,1770145337636,-500.0,0.00015088,2]
[404443808,1770145337659,-259.81478781,0.00015699,2]
[404443809,1770145337684,-720.0,0.00015815,2]
[404443810,1770145337707,-169.6381741,0.00016309,2]
[404443811,1770145337731,-3218.913184,0.00016453,2]
[404443812,1770145337896,-864.0,0.00017396,2]
[404443813,1770145337921,-194.1844801,0.00017496,2]
[404443814,1770145337945,-305.34871337,0.00017498,2]
[404443815,1770145337968,-739.57855414,0.00017642,7]
[404443816,1770145337991,-500.0,0.00017698,2]
[404443817,1770145338018,-500.0,0.00017698,2]
[404443818,1770145338043,-500.0,0.00017698,2]
[404443819,1770145338072,-500.0,0.00017698,2]
[404443820,1770145338096,-497.35589398,0.00017698,2]
[404443821,1770145338121,-269.3195799,0.00017698,2]
[404443822,1770145338145,-500.0,0.00017698,2]
[404443823,1770145338168,-236.22262857,0.00017698,2]
[404443824,1770145338194,-500.0,0.00017698,2]
[404443825,1770145338218,-438.96546754,0.00017698,2]
[404443826,1770145338242,-500.0,0.00017698,2]
[404443827,1770145338266,-299.44755205,0.00017699,2]
[404443828,1770145338289,-744.93309967,0.000179,2]
[404443829,1770145338311,-4271.12715563,0.000179,2]
[404443830,1770145338340,-243.9,0.0001799,3]
[404443831,1770145338362,-731.7,0.0001799,3]
[404443832,1770145338385,-200.809,0.0001799,2]
[404443833,1770145338408,-500.0,0.00017999,2]
[404443834,1770145338430,-500.0,0.00017999,2]
[404443835,1770145338453,-167.73948111,0.00017999,2]
[404443836,1770145338476,-303.07897463,0.00017999,2]
[404443837,1770145338500,-600642.18022578,0.00018,2]
[404443838,1770145338525,-365751.5323205,0.00018,2]
[404443879,1770145756003,-169.23182511,0.00013699,2]
[404443880,1770145758039,-182.6599999,0.00013699,2]
[404443881,1770145759473,-148.10817499,0.00013699,2]
[404443882,1770145759496,-7.26182501,0.00013699,2]
[404443890,1770145765458,-154.99399113,0.00013699,2]
[404443902,1770145767604,-164.31,0.00013699,2]
[404443910,1770145769699,306.2376036,0.00013699,2]
[404443912,1770145774153,-173.43418386,0.00013699,2]
[404443913,1770145774174,-213.57554963,0.00013699,2]
[404443914,1770145777820,-147.87487802,0.00013699,2]
[404443915,1770145777840,-60.1155411,0.00013699,2]
[404443916,1770145779914,-160.56,0.00013699,2]
[404443917,1770145781322,-281.94924388,0.00013699,2]
[404443918,1770145781345,-54.22470058,0.00013699,2]
[404443919,1770145783511,-239.9738334,0.00013699,2]
[404443920,1770145785645,-205.80146602,0.00013699,2]
[404443921,1770145785667,-209.10330224,0.00013699,2]
[404443922,1770145788931,-290.89669776,0.00013699,2]
[404443923,1770145788952,-9.10330224,0.00013699,2]
[404443924,1770145791657,-187.88248611,0.00013699,2]
[404443925,1770145793328,-303.01421165,0.00013699,2]
[404443926,1770145793350,-500.0,0.00013699,2]
[404443927,1770145793372,-160.58942726,0.00013699,2]
[404443928,1770145797372,-339.41057274,0.00013699,2]
[404443929,1770145797393,-469.06200658,0.00013699,2]
[404443930,1770145800038,496.73394446,0.00013699,2]
[404443931,1770145803810,-30.93799342,0.00013699,2]
[404443932,1770145803841,-204.5931363,0.00013835,2]
[404443933,1770145805139,615.0,0.00013699,2]
[404443934,1770145808042,-300.0,0.00013972,2]
[404443935,1770145808067,-300.0,0.00013972,2]
[404443936,1770145808092,-300.0,0.00013972,2]
[404443937,1770145808116,-100.03031374,0.00013972,2]
[404443938,1770145812311,-199.96968626,0.00013972,2]
[404443939,1770145812334,-177.19228733,0.00013972,2]
[404443940,1770145814151,-122.80771267,0.00013972,2]
[404443941,1770145814175,-131.9318947,0.00013972,2]
[404443942,1770145814986,4380.77642797,0.00013835,2]
[404443943,1770145819024,-168.0681053,0.00013972,2]
[404443944,1770145819048,-15.30526268,0.00013972,2]
[404443945,1770145821638,-284.69473732,0.00013972,2]
[404443946,1770145821663,-39.22086424,0.00013972,2]
[404443947,1770145825310,-224.86107792,0.00013972,2]
[404443948,1770145826808,-35.91805784,0.00013972,2]
[404443949,1770145826832,-260.91616654,0.00013972,2]
[404443950,1770145829823,-39.08383346,0.00013972,2]
[404443951,1770145829847,-300.0,0.00013972,2]
[404443952,1770145829875,-4.67321287,0.00013972,2]
[404443993,1770145831955,-295.32678713,0.00013972,2]
[404443995,1770145831964,-300.0,0.00013972,2]
[404443996,1770145831973,-300.0,0.00013972,2]
[404443997,1770145831984,-300.0,0.00013972,2]
[404443998,1770145831998,-215.39829676,0.00013972,2]
[404443999,1770145832011,-84.60170324,0.00013972,2]
[404444000,1770145832022,-515.39829676,0.00014247,2]
[404444001,1770145832036,-484.60170324,0.00014247,2]
[404444002,1770145832045,-57.00169746,0.00014247,2]
[404444074,1770145832919,-256.24295367,0.00014247,2]
[404444155,1770145838190,-164.72,0.00014247,2]
[404444306,1770145839656,-22.03534887,0.00014247,2]
[404444310,1770145839679,-182.65558878,0.00014247,2]
[404444351,1770145840258,-598.03651617,0.00014247,2]
[404444353,1770145840268,-600.0,0.0001425,2]
[404444355,1770145840277,-150.06563889,0.00015018,2]
[404444357,1770145840286,-720.0,0.00015675,2]
[404444359,1770145840297,-241.41990083,0.00015835,2]
[404444361,1770145840306,-780.6745317,0.00015911,2]
[404444363,1770145840315,-181.718144,0.00017107,2]
[404444365,1770145840324,-864.0,0.00017243,2]
[404444367,1770145840334,-273.70875232,0.00017609,2]
[404444369,1770145840344,-169.70744721,0.00017649,2]
[404444371,1770145840353,-278.24666537,0.00017835,2]
[404444373,1770145840364,-166.66666668,0.00017899,2]
[404444375,1770145840374,-3737.23626115,0.000179,2]
[404444377,1770145840388,-487.8,0.0001799,3]
[404444380,1770145840400,-212.15528224,0.00017999,2]
[404444382,1770145840411,-270.99616306,0.00017999,2]
[404444384,1770145840421,-8226.76803038,0.00018,2]
[404444386,1770145840433,-2000.04507,0.00018,2]
[404444546,1770145845116,-411192.54262906,0.00018,2]
[404444547,1770145845128,-7688.13451817,0.00018,2]
[404444548,1770145845138,-2093.0,0.00018,2]
[404444549,1770145845147,-180.61083864,0.00018,2]
[404444550,1770145845157,-827.94,0.00018,2]
[404444551,1770145845167,-827.94,0.00018,2]
[404444552,1770145845177,-827.94,0.00018,2]
[404444553,1770145845186,-827.94,0.00018,2]
[404444554,1770145845196,-827.94,0.00018,2]
[404444555,1770145845205,-827.94,0.00018,2]
[404444556,1770145845215,-827.94,0.00018,2]
[404444557,1770145845224,-827.94,0.00018,2]
[404444558,1770145845233,-827.94,0.00018,2]
[404444559,1770145845243,-827.94,0.00018,2]
[404444560,1770145845252,-827.94,0.00018,2]
[404444561,1770145845261,-827.94,0.00018,2]
[404444562,1770145845270,-827.94,0.00018,2]
[404444563,1770145845279,-827.94,0.00018,2]
[404444564,1770145845289,-827.94,0.00018,2]
[404444565,1770145845298,-827.94,0.00018,2]
[404444566,1770145845308,-995.43,0.00018,2]
[404444567,1770145845318,-1888.0,0.00018082,2]
[404444568,1770145845327,-168.0,0.00018097,2]
[404444569,1770145845337,-250.0,0.000181,2]
[404444570,1770145845347,-181.718144,0.00018307,2]
[404444571,1770145845356,-223.29971792,0.00018414,7]
[404444572,1770145845375,-228.302062,0.00018493,2]
[404444573,1770145845386,-303.10001603,0.000189,2]
[404444574,1770145845396,-303.10001603,0.000189,2]
[404444575,1770145845406,-1000.0,0.00018967,2]
[404444576,1770145845416,-166.0,0.00019,2]
[404444577,1770145845425,-2864.31604835,0.00019,2]
[404444578,1770145845435,-492.67575418,0.00019029,2]
[404444579,1770145845445,-303.10001603,0.00019089,2]
[404444580,1770145845455,-303.10001603,0.00019089,2]
[404444581,1770145845464,-508.6493,0.00019178,2]
[404444582,1770145845474,-508.6493,0.00019178,2]
[404444584,1770145845485,-508.6493,0.00019178,2]
[404444585,1770145845496,-508.6493,0.00019178,2]
[404444586,1770145845505,-233.04,0.00019178,2]
[404444587,1770145845515,-300.0,0.00019178,3]
[404444588,1770145845525,-300.0,0.00019178,3]
[404444589,1770145845534,-3089.0,0.000192,2]
[404444590,1770145845544,-1806.46,0.000192,2]
[404444592,1770145845554,-303.10001603,0.00019278,2]
[404444594,1770145845563,-303.10001603,0.00019278,2]
[404444595,1770145845575,-154.56494249,0.00019355,7]
[404444596,1770145845585,-618.25976996,0.00019374,7]
[404444597,1770145845595,-303.10001603,0.00019467,2]
[404444598,1770145845605,-303.10001603,0.00019467,2]
[404444599,1770145845615,-181.718144,0.00019507,2]
[404444600,1770145845624,-508.6493,0.00019589,3]
[404444601,1770145845633,-508.6493,0.00019589,3]
[404444602,1770145845643,-508.6493,0.00019589,3]
[404444603,1770145845653,-303.10001603,0.00019656,2]
[404444604,1770145845663,-303.10001603,0.00019656,2]
[404444605,1770145845674,-400.0,0.00019726,4]
[404444606,1770145845684,-315.0734299,0.00019835,2]
[404444607,1770145845695,-454.65002405,0.00019845,4]
[404444608,1770145845706,-454.65002405,0.00019845,4]
[404444609,1770145845715,-1371.0,0.00019989,2]
[404444610,1770145845727,-2154.0,0.00019989,2]
[404444611,1770145845737,-631.0,0.00019989,2]
[404444612,1770145845747,-1499.999999,0.0002,2]
[404444613,1770145845757,-3521.76648996,0.0002,20]
[404444614,1770145845766,-508.6493,0.0002,4]
[404444616,1770145845776,-151.55000802,0.0002,2]
[404444618,1770145845786,-454.65002405,0.00020034,4]
[404444620,1770145845795,-454.65002405,0.00020034,4]
[404444622,1770145845805,-454.65002405,0.00020223,4]
[404444624,1770145845815,-454.65002405,0.00020223,4]
[404444626,1770145845824,-718.0,0.00020379,2]
[404444628,1770145845834,-179.0,0.00020379,2]
[404444630,1770145845843,-435.0,0.00020379,2]
[404444632,1770145845853,-419.0,0.00020379,2]
[404444634,1770145845863,-454.65002405,0.00020412,4]
[404444636,1770145845873,-454.65002405,0.00020412,4]
[404444638,1770145845882,-874.99213943,0.00020447,2]
[404444639,1770145845892,-198.69405353,0.00020454,2]
[404444640,1770145845902,-2193.310908,0.00020548,2]
[404444641,1770145845911,-169.70744721,0.00020551,5]
[404444642,1770145845924,-454.65002405,0.00020601,4]
[404444643,1770145845934,-152.0697446,0.00020601,4]
[404444644,1770145845945,-181.718144,0.00020707,2]
[404444645,1770145845956,-160.2602507,0.00020754,2]
[404444646,1770145845967,-1000.0,0.00020864,2]
[404444647,1770145845977,-244.0,0.00020864,2]
[404444649,1770145845988,-10000.0,0.00021,5]
[404444651,1770145845998,-1566.80780372,0.00021,10]
[404444652,1770145846019,-14927.7180176,0.00021,2]
[404444653,1770145846028,-3000.0,0.00021,2]
[404444655,1770145846038,-3000.0,0.0002101,2]
[404444656,1770145846049,-3000.0,0.0002102,2]
[404444657,1770145846059,-3000.0,0.0002103,2]
[404444658,1770145846068,-3000.0,0.0002104,2]
[404444659,1770145846078,-3459.320241,0.0002105,2]
[404444660,1770145846088,-4325.2980134,0.000215,2]
[404444661,1770145846098,-351.90019444,0.00021835,2]
[404444662,1770145846108,-2000.0,0.00021917,2]
[404444663,1770145846117,-228.302062,0.00021918,2]
[404444664,1770145846127,-150.0,0.00021918,2]
[404444665,1770145846137,-150.38236857,0.00021918,2]
[404444666,1770145846146,-160.88,0.00022,7]
[404444667,1770145846155,-150.66764773,0.00022466,2]
[404444668,1770145846165,-1035.83678534,0.000225,2]
[404444669,1770145846175,-1806.46,0.000225,14]
[404444670,1770145846184,-152.354,0.00022577,2]
[404444671,1770145846194,-150.631,0.00022577,2]
[404444672,1770145846203,-246.056,0.00022577,2]
[404444673,1770145846213,-233.066,0.00022577,2]
[404444674,1770145846227,-150.469,0.00022577,2]
[404444675,1770145846237,-199.724,0.00022577,2]
[404444676,1770145846247,-268.29,0.00022577,2]
[404444677,1770145846257,-1000.0,0.0002295,10]
[404444678,1770145846267,-492.0,0.0002295,10]
[404444679,1770145846276,-1371.0,0.00022989,2]
[404444680,1770145846286,-2154.0,0.00022989,2]
[404444681,1770145846297,-631.0,0.00022989,2]
[404444682,1770145846306,-1041.66666667,0.00023,3]
[404444683,1770145846316,-740.91124423,0.00023,3]
[404444684,1770145846325,-3089.0,0.000231,2]
[404444685,1770145846335,-718.0,0.00023379,2]
[404444686,1770145846344,-179.0,0.00023379,2]
[404444687,1770145846354,-419.0,0.00023379,2]
[404444688,1770145846364,-419.0,0.00023379,2]
[404444689,1770145846374,-388.72695897,0.00023835,2]
[404444690,1770145846383,-1740.16970255,0.00024,2]
[404444691,1770145846392,-466.77971135,0.00024,2]
[404444692,1770145846401,-2132.67838257,0.00024142,2]
[404444693,1770145846411,-43733.88138032,0.0002465,2]
[404444695,1770145846420,-552.02413397,0.00024657,12]
[404444696,1770145846430,-150.0,0.00024658,2]
[404444697,1770145846439,-200.0,0.00024658,2]
[404444698,1770145846449,-7490.11212535,0.00024774,2]
[404444699,1770145846458,-151.0,0.00024774,7]
[404444700,1770145846467,-261.861534,0.000249,7]
[404444701,1770145846477,-187570.343146,0.000249,2]
[404444702,1770145846486,-1082.163056,0.0002498,5]
[404444703,1770145846495,-173.6,0.00025,7]
[404444704,1770145846504,-2304.87069874,0.00025,2]
[404444705,1770145846514,-10364.0,0.00025,2]
[404444706,1770145846523,-500.0,0.00025,2]
[404444707,1770145846534,-150.0,0.00025,2]
[404444708,1770145846543,-761.93195257,0.00025,2]
[404444709,1770145846553,-1000.0,0.00025,5]
[404444710,1770145846563,-250.0,0.00025205,2]
[404444711,1770145846573,-1000.0,0.00025245,10]
[404444712,1770145846582,-791.0,0.00025245,10]
[404444713,1770145846592,-228.302062,0.00025342,2]
[404444714,1770145846601,-150.0,0.00025577,2]
[404444715,1770145846611,-150.0,0.00025577,2]
[404444716,1770145846620,-150.0,0.00025577,2]
[404444717,1770145846629,-150.0,0.00025577,2]
[404444718,1770145846639,-150.06563889,0.00025578,2]
[404444719,1770145846649,-740.91124423,0.00025646,2]
[404444720,1770145846659,-1041.66666667,0.00025646,2]
[404444721,1770145846669,-1806.46,0.000257,14]
[404444722,1770145846679,-350.0,0.00025753,2]
[404444723,1770145846688,-425.5537235,0.00025835,2]
[404444724,1770145846698,-1371.0,0.00025989,2]
[404444725,1770145846709,-2154.0,0.00025989,2]
[404444726,1770145846720,-631.0,0.00025989,2]
[404444727,1770145846730,-15630.8619288,0.0002599,2]
[404444728,1770145846740,-531.03692067,0.00026,2]
[404444729,1770145846749,-19900.0,0.00026,2]
[404444730,1770145846758,-300.0,0.00026116,2]
[404444731,1770145846768,-195.08218139,0.0002616,2]
[404444732,1770145846777,-251.47596713,0.00026301,2]
[404444733,1770145846787,-718.0,0.00026379,2]
[404444734,1770145846798,-179.0,0.00026379,2]
[404444735,1770145846807,-419.0,0.00026379,2]
[404444736,1770145846816,-419.0,0.00026379,2]
[404444737,1770145846825,-240.60888764,0.00026904,14]
[404444738,1770145846835,-150.0,0.0002739,2]
[404444739,1770145846844,-500.0,0.00027397,2]
[404444740,1770145846853,-500.0,0.00027397,2]
[404444741,1770145846863,-519.37484643,0.00027397,2]
[404444742,1770145846873,-500.0,0.00027397,5]
[404444743,1770145846883,-150.0,0.00027397,5]
[404444744,1770145846892,-150.0,0.00027397,5]
[404444745,1770145846902,-15630.8619288,0.0002749,2]
[404444746,1770145846911,-46056.29493412,0.000275,2]
[404444747,1770145846921,-3089.0,0.000276,2]
[404444748,1770145846930,-1000.0,0.0002777,30]
[404444749,1770145846940,-1000.0,0.0002777,30]
[404444750,1770145846950,-462.38048804,0.00027835,2]
[404444751,1770145846960,-853.21225774,0.00027945,5]
[404444752,1770145846970,-250.0,0.00027945,5]
[404444753,1770145846979,-250.0,0.00027945,5]
[404444754,1770145846989,-15352.90396945,0.00028,2]
[404444755,1770145846998,-1041.66666667,0.00028,3]
[404444756,1770145847007,-702.62310577,0.000283,30]
[404444757,1770145847017,-15630.8619288,0.0002849,2]
[404444758,1770145847027,-350.0,0.00028493,5]
[404444759,1770145847036,-350.0,0.00028493,5]
[404444760,1770145847046,-150.0,0.000285,30]
[404444761,1770145847056,-316.242819,0.000285,30]
[404444762,1770145847065,-482.485638,0.000285,30]
[404444763,1770145847075,-648.728457,0.000285,30]
[404444764,1770145847084,-814.971277,0.000285,30]
[404444765,1770145847094,-981.214096,0.000285,30]
[404444766,1770145847103,-1147.456915,0.000285,30]
[404444767,1770145847113,-1313.699734,0.000285,30]
[404444768,1770145847122,-1479.942554,0.000285,30]
[404444769,1770145847132,-1646.185373,0.000285,30]
[404444770,1770145847141,-150.0,0.00028577,2]
[404444771,1770145847150,-150.0,0.00028577,2]
[404444772,1770145847159,-150.0,0.00028577,2]
[404444773,1770145847169,-150.0,0.00028734,30]
[404444774,1770145847179,-164.901418,0.00028734,30]
[404444775,1770145847188,-179.802837,0.00028734,30]
[404444776,1770145847197,-194.704256,0.00028734,30]
[404444777,1770145847207,-209.605674,0.00028734,30]
[404444778,1770145847216,-224.507093,0.00028734,30]
[404444779,1770145847226,-239.408512,0.00028734,30]
[404444780,1770145847236,-254.309931,0.00028734,30]
[404444781,1770145847246,-269.211349,0.00028734,30]
[404444782,1770145847256,-284.112768,0.00028734,30]
[404444783,1770145847266,-150.0,0.00028734,30]
[404444784,1770145847275,-246.694203,0.00028734,30]
[404444785,1770145847284,-343.388406,0.00028734,30]
[404444786,1770145847294,-440.08261,0.00028734,30]
[404444787,1770145847303,-536.776813,0.00028734,30]
[404444788,1770145847312,-633.471017,0.00028734,30]
[404444789,1770145847321,-730.16522,0.00028734,30]
[404444790,1770145847333,-826.859424,0.00028734,30]
[404444791,1770145847342,-923.553627,0.00028734,30]
[404444792,1770145847352,-1020.247831,0.00028734,30]
[404444793,1770145847361,-150.0,0.00028734,30]
[404444794,1770145847371,-451.167701,0.00028734,30]
[404444795,1770145847381,-752.335402,0.00028734,30]
[404444796,1770145847390,-1053.503104,0.00028734,30]
[404444797,1770145847399,-1354.670805,0.00028734,30]
[404444798,1770145847409,-1655.838507,0.00028734,30]
[404444799,1770145847419,-1957.006208,0.00028734,30]
[404444800,1770145847428,-2258.17391,0.00028734,30]
[404444801,1770145847438,-2559.341611,0.00028734,30]
[404444802,1770145847447,-2860.509313,0.00028734,30]
[404444803,1770145847456,-286.194566,0.00028734,30]
[404444804,1770145847466,-184.67263685,0.0002876,2]
[404444805,1770145847476,-228.302062,0.00028767,60]
[404444806,1770145847487,-1371.0,0.00028989,2]
[404444807,1770145847496,-2154.0,0.00028989,2]
[404444808,1770145847506,-892.59244384,0.00029,2]
[404444809,1770145847515,-1041.66666667,0.00029,30]
[404444810,1770145847524,-437.18535091,0.00029041,5]
[404444811,1770145847533,-450.0,0.00029041,5]
[404444812,1770145847543,-163.0,0.00029096,14]
[404444813,1770145847552,-1806.46,0.000291,14]
[404444814,1770145847562,-15630.8619288,0.00029369,2]
[404444815,1770145847572,-718.0,0.00029379,2]
[404444816,1770145847581,-179.0,0.00029379,2]
[404444817,1770145847591,-419.0,0.00029379,2]
[404444818,1770145847601,-306.53,0.00029379,2]
[404444819,1770145847611,-550.0,0.00029589,5]
[404444820,1770145847621,-470.6331923,0.00029685,2]
[404444821,1770145847630,-499.20725257,0.00029835,2]
[404444822,1770145847639,-15630.8619288,0.0002999,2]
[404444823,1770145847648,-37831.19304407,0.0003,2]
[404444824,1770145847658,-500.87289048,0.0003,30]
[404444825,1770145847793,-270.26346054,0.0003,2]
[404444826,1770145847805,-10007.0,0.0003,20]
[404444827,1770145847815,-150.0,0.0003013,2]
[404444828,1770145847824,-247.8958354,0.00030136,2]
[404444829,1770145847834,-276.96,0.00030137,7]
[404444830,1770145847844,-650.0,0.00030137,5]
[404444831,1770145847853,-1000.0,0.00030547,30]
[404444832,1770145847862,-1000.0,0.00030547,30]
[404444833,1770145847872,-579.0,0.00030547,30]
[404444834,1770145847881,-750.0,0.00030685,5]
[404444835,1770145847891,-9786.41962069,0.00031,120]
[404444836,1770145847900,-850.0,0.00031233,5]
[404444837,1770145847909,-174.0,0.00031288,45]
[404444838,1770145847918,-3089.0,0.000313,2]
[404444839,1770145847928,-150.0,0.00031577,2]
[404444840,1770145847938,-150.0,0.00031577,2]
[404444841,1770145847947,-950.0,0.00031781,5]
[404444842,1770145847958,-536.03401711,0.00031835,2]
[404444843,1770145847968,-15630.8619288,0.0003189,2]
[404444844,1770145847978,-44039.53561349,0.000319,2]
[404444845,1770145847987,-1371.0,0.00031989,2]
[404444846,1770145847997,-2154.0,0.00031989,2]
[404444847,1770145848013,-31261.7238577,0.0003199,2]
[404444848,1770145848022,-486.76153795,0.00032,2]
[404444849,1770145848031,-9703.48204603,0.00032,30]
[404444850,1770145848041,-106820.47179071,0.00032,2]
[404444851,1770145848051,-6853.67990749,0.0003222,30]
[404444852,1770145848151,-1050.59287838,0.0003222,30]
[404444853,1770145848163,-1008.76461423,0.0003222,30]
[404444854,1770145848216,-150.0,0.00028734,30]
[404444855,1770145848225,-1996.7682726,0.0003222,30]
[404444856,1770145848268,-530.34812,0.00028734,30]
[404444857,1770145848278,-39.87307394,0.0003222,30]
[404444858,1770145848291,-1080.93675336,0.0003222,30]
[404444859,1770145848300,-1050.0,0.00032329,5]
[404444860,1770145848310,-718.0,0.00032379,2]
[404444861,1770145848319,-157.077,0.00032379,2]
[404444862,1770145848329,-419.0,0.00032379,2]
[404444863,1770145848338,-1806.46,0.000326,14]
[404444864,1770145848348,-1841.09916447,0.00032877,10]
[404444865,1770145848418,-1322.14083553,0.00032877,10]
[404444866,1770145848427,-2636.03,0.00032877,10]
[404444867,1770145848436,-809.91745265,0.00032877,5]
[404444868,1770145848445,-500.0,0.00032877,10]
[404444869,1770145848455,-383.65540276,0.00033,120]
[404444870,1770145848466,-2444.56299917,0.00033,120]
[404444871,1770145848477,-2619.75691753,0.00033,120]
[404444872,1770145848532,-910.69624,0.00028734,30]